[Event "Late-Titled-Tuesday-Blitz-May-14-2024"]
[Site "Chess.com"]
[Date "2024.05.14"]
[Round "1"]
[White "Durarbayli"]
[Black "WindWhistler11"]
[Result "1-0"]
[WhiteElo "2948"]
[BlackElo "2523"]
[TimeControl "180+1"]
[EndTime "14:05:53 PDT"]
[Termination "Durarbayli won by resignation"]

1. e4 {[%clk 0:03:00.9]} 1... e6 {[%clk 0:02:57.9]} 2. d4 {[%clk 0:03:00.7]}
2... d5 {[%clk 0:02:57.3]} 3. exd5 {[%clk 0:02:56.9]} 3... exd5 {[%clk
0:02:56.4]} 4. h3 {[%clk 0:02:57.2]} 4... Nc6 {[%clk 0:02:52.2]} 5. Nf3 {[%clk
0:02:56.9]} 5... Bd6 {[%clk 0:02:50.7]} 6. c4 {[%clk 0:02:52.7]} 6... Nf6 {[%clk
0:02:25.6]} 7. c5 {[%clk 0:02:41.9]} 7... Be7 {[%clk 0:02:25]} 8. Bb5 {[%clk
0:02:42.5]} 8... Bd7 {[%clk 0:02:20.5]} 9. O-O {[%clk 0:02:40.9]} 9... O-O
{[%clk 0:02:20.2]} 10. Nc3 {[%clk 0:02:40.6]} 10... b6 {[%clk 0:02:14.5]} 11.
Qa4 {[%clk 0:02:18.8]} 11... a6 {[%clk 0:02:00.2]} 12. Bxc6 {[%clk 0:02:12.3]}
12... b5 {[%clk 0:02:00.1]} 13. Bxb5 {[%clk 0:01:53.7]} 13... axb5 {[%clk
0:01:51.4]} 14. Qb3 {[%clk 0:01:49.2]} 14... c6 {[%clk 0:01:36.3]} 15. Re1
{[%clk 0:01:42.3]} 15... h6 {[%clk 0:01:30.3]} 16. Bf4 {[%clk 0:01:40.2]} 16...
Be6 {[%clk 0:01:27.4]} 17. Ne5 {[%clk 0:01:29.5]} 17... Qc8 {[%clk 0:01:26.8]}
18. a4 {[%clk 0:01:26.9]} 18... bxa4 {[%clk 0:01:15.9]} 19. Nxa4 {[%clk
0:01:27.1]} 19... Qe8 {[%clk 0:01:03.3]} 20. Qb7 {[%clk 0:01:12]} 20... Qc8
{[%clk 0:00:13.6]} 21. Qxe7 {[%clk 0:01:00.7]} 21... Re8 {[%clk 0:00:13.6]} 22.
Qd6 {[%clk 0:01:00.7]} 1-0

[Event "Late-Titled-Tuesday-Blitz-May-14-2024"]
[Site "Chess.com"]
[Date "2024.05.14"]
[Round "1"]
[White "emiliocordova"]
[Black "joksijoksi"]
[Result "1/2-1/2"]
[WhiteElo "2898"]
[BlackElo "2518"]
[TimeControl "180+1"]
[EndTime "14:05:53 PDT"]
[Termination "Game drawn by repetition"]

1. d4 {[%clk 0:02:56.6]} 1... d5 {[%clk 0:02:58.2]} 2. Nf3 {[%clk 0:02:56.2]}
2... Nf6 {[%clk 0:02:55.6]} 3. c4 {[%clk 0:02:56.1]} 3... c6 {[%clk 0:02:55.3]}
4. e3 {[%clk 0:02:56.4]} 4... Bf5 {[%clk 0:02:55.1]} 5. Nc3 {[%clk 0:02:56.4]}
5... e6 {[%clk 0:02:55]} 6. Nh4 {[%clk 0:02:52.1]} 6... Be4 {[%clk 0:02:54.9]}
7. f3 {[%clk 0:02:52]} 7... Bg6 {[%clk 0:02:55.4]} 8. Qb3 {[%clk 0:02:51]} 8...
Qc7 {[%clk 0:02:55.1]} 9. Bd2 {[%clk 0:02:50.2]} 9... Nbd7 {[%clk 0:02:55]} 10.
Rc1 {[%clk 0:02:48.3]} 10... Qb6 {[%clk 0:02:42.8]} 11. c5 {[%clk 0:02:47.3]}
11... Qc7 {[%clk 0:02:42]} 12. f4 {[%clk 0:02:41.4]} 12... Ne4 {[%clk
0:02:18.5]} 13. Nxg6 {[%clk 0:02:25.6]} 13... Nxd2 {[%clk 0:02:16.4]} 14. Kxd2
{[%clk 0:02:26.5]} 14... hxg6 {[%clk 0:02:16]} 15. g3 {[%clk 0:02:23.4]} 15...
f5 {[%clk 0:02:03.2]} 16. Bg2 {[%clk 0:02:21.3]} 16... Nf6 {[%clk 0:02:02.7]}
17. Bf3 {[%clk 0:02:18.9]} 17... Be7 {[%clk 0:01:56.3]} 18. Kc2 {[%clk
0:02:19.1]} 18... Kd7 {[%clk 0:01:42.5]} 19. Kb1 {[%clk 0:02:19]} 19... Rh3
{[%clk 0:01:40.2]} 20. Bg2 {[%clk 0:02:18.3]} 20... Rh5 {[%clk 0:01:35]} 21. Nd1
{[%clk 0:02:15.1]} 21... Rah8 {[%clk 0:01:31.7]} 22. h4 {[%clk 0:02:15]} 22...
Ng4 {[%clk 0:01:21.8]} 23. Bf3 {[%clk 0:02:12.9]} 23... g5 {[%clk 0:01:14.8]}
24. Bxg4 {[%clk 0:02:12.6]} 24... fxg4 {[%clk 0:01:15.7]} 25. Nf2 {[%clk
0:02:13]} 25... gxh4 {[%clk 0:01:14.8]} 26. Nxg4 {[%clk 0:02:13.1]} 26... hxg3
{[%clk 0:01:09.8]} 27. Ne5+ {[%clk 0:02:12.7]} 27... Kc8 {[%clk 0:01:09.7]} 28.
Rxh5 {[%clk 0:02:12.7]} 28... Rxh5 {[%clk 0:01:09.2]} 29. Qd1 {[%clk 0:02:13.6]}
29... Rh2 {[%clk 0:01:06.1]} 30. Qg4 {[%clk 0:02:12.7]} 30... Rh6 {[%clk
0:00:49.8]} 31. Qxg7 {[%clk 0:02:07.6]} 31... Rf6 {[%clk 0:00:38.8]} 32. Qxg3
{[%clk 0:02:05.7]} 32... Bd8 {[%clk 0:00:38.3]} 33. Qg8 {[%clk 0:02:02.2]} 33...
Rh6 {[%clk 0:00:28.5]} 34. Rg1 {[%clk 0:02:00.1]} 34... Qa5 {[%clk 0:00:25.7]}
35. Nf7 {[%clk 0:01:57]} 35... Rh2 {[%clk 0:00:21.2]} 36. a3 {[%clk 0:01:50.4]}
36... Rxb2+ {[%clk 0:00:17.1]} 37. Kxb2 {[%clk 0:01:49.8]} 37... Qd2+ {[%clk
0:00:17.2]} 38. Kb1 {[%clk 0:01:45.9]} 38... Qd3+ {[%clk 0:00:16.3]} 39. Kc1
{[%clk 0:01:45.4]} 39... Qc3+ {[%clk 0:00:16.5]} 40. Kd1 {[%clk 0:01:44.1]}
40... Qd3+ {[%clk 0:00:16.9]} 41. Ke1 {[%clk 0:01:43.6]} 41... Qxe3+ {[%clk
0:00:17.5]} 42. Kf1 {[%clk 0:01:43.6]} 42... Qf3+ {[%clk 0:00:18]} 43. Ke1
{[%clk 0:01:44.1]} 43... Qe3+ {[%clk 0:00:18.5]} 44. Kd1 {[%clk 0:01:44.6]}
44... Qd3+ {[%clk 0:00:18.9]} 45. Kc1 {[%clk 0:01:45]} 45... Qc3+ {[%clk
0:00:19.4]} 46. Kd1 {[%clk 0:01:44.8]} 46... Qd3+ {[%clk 0:00:19.7]} 47. Kc1
{[%clk 0:01:45.2]} 47... Qc3+ {[%clk 0:00:20.1]} 48. Kd1 {[%clk 0:01:45.8]}
48... Qd3+ {[%clk 0:00:20.4]} 1/2-1/2

[Event "Late-Titled-Tuesday-Blitz-May-14-2024"]
[Site "Chess.com"]
[Date "2024.05.14"]
[Round "1"]
[White "Ali_rastbod"]
[Black "PapaieDudu"]
[Result "1-0"]
[WhiteElo "2705"]
[BlackElo "2374"]
[TimeControl "180+1"]
[EndTime "14:05:56 PDT"]
[Termination "Ali_rastbod won on time"]

1. e4 {[%clk 0:02:34.6]} 1... c5 {[%clk 0:02:57.1]} 2. Nc3 {[%clk 0:02:34.9]}
2... a6 {[%clk 0:02:56.9]} 3. g3 {[%clk 0:02:35.8]} 3... e6 {[%clk 0:02:57]} 4.
Bg2 {[%clk 0:02:36.7]} 4... Nc6 {[%clk 0:02:56.2]} 5. f4 {[%clk 0:02:37.3]} 5...
g6 {[%clk 0:02:51.6]} 6. e5 {[%clk 0:02:37.5]} 6... Nge7 {[%clk 0:02:49.5]} 7.
Ne4 {[%clk 0:02:37.6]} 7... Nd5 {[%clk 0:02:39.7]} 8. Nf3 {[%clk 0:02:33.3]}
8... Be7 {[%clk 0:02:35]} 9. d3 {[%clk 0:02:26]} 9... b5 {[%clk 0:02:25.8]} 10.
c4 {[%clk 0:02:23.5]} 10... Nb6 {[%clk 0:02:18.7]} 11. Qe2 {[%clk 0:02:15.6]}
11... Bb7 {[%clk 0:02:14.4]} 12. Be3 {[%clk 0:02:12.8]} 12... bxc4 {[%clk
0:01:42.5]} 13. dxc4 {[%clk 0:02:10.8]} 13... Na4 {[%clk 0:01:42.6]} 14. b3
{[%clk 0:01:57.7]} 14... Nb4 {[%clk 0:01:03]} 15. Nfd2 {[%clk 0:01:22.7]} 15...
Nc2+ {[%clk 0:00:50.7]} 16. Kf2 {[%clk 0:01:20.6]} 16... Nxa1 {[%clk 0:00:24.6]}
17. Rxa1 {[%clk 0:01:21.5]} 17... Nb6 {[%clk 0:00:18.9]} 18. Nd6+ {[%clk
0:01:13.4]} 18... Bxd6 {[%clk 0:00:14.3]} 19. Bxb7 {[%clk 0:01:14.3]} 19... Be7
{[%clk 0:00:12.8]} 20. Bxa8 {[%clk 0:01:11.6]} 20... Nxa8 {[%clk 0:00:10.6]} 21.
Qf3 {[%clk 0:01:12.5]} 21... O-O {[%clk 0:00:09.9]} 22. Ne4 {[%clk 0:01:12.9]}
22... f6 {[%clk 0:00:06.1]} 23. exf6 {[%clk 0:01:11.6]} 23... Bxf6 {[%clk
0:00:06.3]} 24. Rd1 {[%clk 0:01:12.2]} 1-0

[Event "Late-Titled-Tuesday-Blitz-May-14-2024"]
[Site "Chess.com"]
[Date "2024.05.14"]
[Round "1"]
[White "FernandoArauzAlonso"]
[Black "Jospem"]
[Result "0-1"]
[WhiteElo "2533"]
[BlackElo "3018"]
[TimeControl "180+1"]
[EndTime "14:05:57 PDT"]
[Termination "Jospem won on time"]

1. e4 {[%clk 0:02:52.8]} 1... c5 {[%clk 0:03:00.4]} 2. a3 {[%clk 0:02:46.4]}
2... e6 {[%clk 0:03:00]} 3. b4 {[%clk 0:02:38.2]} 3... d5 {[%clk 0:03:00.3]} 4.
e5 {[%clk 0:02:27]} 4... b6 {[%clk 0:02:59.4]} 5. d4 {[%clk 0:02:19.6]} 5... Qc7
{[%clk 0:02:59.1]} 6. Nf3 {[%clk 0:02:09.8]} 6... cxd4 {[%clk 0:02:57.5]} 7. Bd3
{[%clk 0:02:03.3]} 7... Ba6 {[%clk 0:02:55.9]} 8. O-O {[%clk 0:01:58.9]} 8...
Bxd3 {[%clk 0:02:51.5]} 9. Qxd3 {[%clk 0:01:59.8]} 9... Nc6 {[%clk 0:02:52.2]}
10. Re1 {[%clk 0:01:58.5]} 10... Nge7 {[%clk 0:02:52.5]} 11. Bf4 {[%clk
0:01:50.4]} 11... Nf5 {[%clk 0:02:51.1]} 12. Nbd2 {[%clk 0:01:46.7]} 12... Be7
{[%clk 0:02:51.1]} 13. Nb3 {[%clk 0:01:46.8]} 13... Rc8 {[%clk 0:02:51.5]} 14.
g4 {[%clk 0:01:34.3]} 14... Nh4 {[%clk 0:02:51.2]} 15. Nxh4 {[%clk 0:01:34.7]}
15... Bxh4 {[%clk 0:02:52.1]} 16. g5 {[%clk 0:01:34.5]} 16... Qe7 {[%clk
0:02:44.7]} 17. Qd2 {[%clk 0:01:17.4]} 17... h6 {[%clk 0:02:43]} 18. gxh6 {[%clk
0:01:14]} 18... gxh6 {[%clk 0:02:43.9]} 19. b5 {[%clk 0:01:10.5]} 19... Na5
{[%clk 0:02:44.1]} 20. Nxd4 {[%clk 0:01:10.8]} 20... Bg5 {[%clk 0:02:41.9]} 21.
Bxg5 {[%clk 0:00:57.5]} 21... Qxg5+ {[%clk 0:02:41.7]} 22. Qxg5 {[%clk
0:00:57.6]} 22... hxg5 {[%clk 0:02:42.6]} 23. Re3 {[%clk 0:00:48.6]} 23... Nc4
{[%clk 0:02:39.5]} 24. Rg3 {[%clk 0:00:46.4]} 24... Nxe5 {[%clk 0:02:32.2]} 25.
Rxg5 {[%clk 0:00:46]} 25... Rc4 {[%clk 0:02:28.6]} 26. Rxe5 {[%clk 0:00:44.9]}
26... Rxd4 {[%clk 0:02:29]} 27. a4 {[%clk 0:00:38.9]} 27... Rg4+ {[%clk
0:02:28.8]} 28. Kf1 {[%clk 0:00:38.8]} 28... Rxh2 {[%clk 0:02:29.4]} 29. Ke2
{[%clk 0:00:36.6]} 29... Rf4 {[%clk 0:02:29.9]} 30. Rf1 {[%clk 0:00:34.2]} 30...
Rxa4 {[%clk 0:02:30.4]} 31. Rg5 {[%clk 0:00:29.5]} 31... Kf8 {[%clk 0:02:30.7]}
32. Rfg1 {[%clk 0:00:26.9]} 32... Ke7 {[%clk 0:02:31.3]} 33. Rg8 {[%clk
0:00:25.6]} 33... Ra2 {[%clk 0:02:30.4]} 34. Rc1 {[%clk 0:00:23.8]} 34... Rh4
{[%clk 0:02:30.1]} 35. Rc8 {[%clk 0:00:20.6]} 35... Kf6 {[%clk 0:02:30.4]} 36.
Rc7 {[%clk 0:00:16.7]} 36... Rb4 {[%clk 0:02:29.9]} 37. Rh1 {[%clk 0:00:13.8]}
37... Rxb5 {[%clk 0:02:22.5]} 38. Rh7 {[%clk 0:00:13]} 38... Ke5 {[%clk
0:02:21.2]} 39. Rhxf7 {[%clk 0:00:12.8]} 39... Rc5 {[%clk 0:02:21.9]} 40. f4+
{[%clk 0:00:11.9]} 40... Ke4 {[%clk 0:02:20]} 41. Rxc5 {[%clk 0:00:05.5]} 41...
bxc5 {[%clk 0:02:20.9]} 42. Kd2 {[%clk 0:00:06.1]} 42... d4 {[%clk 0:02:18.8]}
43. Re7 {[%clk 0:00:05.4]} 43... Ra6 {[%clk 0:02:18.8]} 44. Rc7 {[%clk
0:00:03.2]} 44... Kxf4 {[%clk 0:02:17.5]} 45. Rxc5 {[%clk 0:00:03.2]} 45... e5
{[%clk 0:02:18.2]} 46. Rc8 {[%clk 0:00:02.4]} 46... Rf6 {[%clk 0:02:18]} 47. Kd3
{[%clk 0:00:01.8]} 47... Kf5 {[%clk 0:02:11.9]} 48. c3 {[%clk 0:00:01.4]} 48...
dxc3 {[%clk 0:02:10.6]} 49. Kxc3 {[%clk 0:00:02.3]} 49... Rd6 {[%clk 0:02:09.6]}
50. Rc7 {[%clk 0:00:01.3]} 50... a6 {[%clk 0:02:09.1]} 0-1

[Event "Late-Titled-Tuesday-Blitz-May-14-2024"]
[Site "Chess.com"]
[Date "2024.05.14"]
[Round "1"]
[White "Adar_07"]
[Black "Indefatigable11"]
[Result "1-0"]
[WhiteElo "2722"]
[BlackElo "2391"]
[TimeControl "180+1"]
[EndTime "14:06:02 PDT"]
[Termination "Adar_07 won by checkmate"]

1. e4 {[%clk 0:02:46.1]} 1... e5 {[%clk 0:02:59.6]} 2. Nf3 {[%clk 0:02:45.2]}
2... Nc6 {[%clk 0:02:59.5]} 3. Bb5 {[%clk 0:02:44.9]} 3... Nf6 {[%clk 0:02:57]}
4. O-O {[%clk 0:02:45.1]} 4... Nxe4 {[%clk 0:02:55.7]} 5. Re1 {[%clk 0:02:44.5]}
5... Nd6 {[%clk 0:02:55.2]} 6. Nxe5 {[%clk 0:02:44.5]} 6... Be7 {[%clk
0:02:54.9]} 7. Bf1 {[%clk 0:02:45.1]} 7... O-O {[%clk 0:02:53.4]} 8. d4 {[%clk
0:02:44.3]} 8... Nf5 {[%clk 0:02:42.5]} 9. c3 {[%clk 0:02:34.1]} 9... d5 {[%clk
0:02:30.4]} 10. Bd3 {[%clk 0:02:31.6]} 10... Nd6 {[%clk 0:02:26.6]} 11. Qf3
{[%clk 0:02:15.6]} 11... Be6 {[%clk 0:02:15.3]} 12. Nd2 {[%clk 0:02:10]} 12...
Qc8 {[%clk 0:01:47.1]} 13. Nf1 {[%clk 0:02:04]} 13... Bf6 {[%clk 0:01:41.6]} 14.
Bf4 {[%clk 0:01:55.1]} 14... Ne7 {[%clk 0:01:20.2]} 15. Ng3 {[%clk 0:01:41]}
15... c6 {[%clk 0:01:12.6]} 16. Nh5 {[%clk 0:01:37.3]} 16... Bxe5 {[%clk
0:01:09.7]} 17. Bxe5 {[%clk 0:01:37.7]} 17... Ndf5 {[%clk 0:00:45.1]} 18. Nxg7
{[%clk 0:01:33.2]} 18... f6 {[%clk 0:00:21.3]} 19. Nxe6 {[%clk 0:01:31]} 19...
Qxe6 {[%clk 0:00:18.1]} 20. Bg3 {[%clk 0:01:31.5]} 20... Qd7 {[%clk 0:00:16.5]}
21. Qg4+ {[%clk 0:01:31.5]} 21... Kh8 {[%clk 0:00:14.9]} 22. Rxe7 {[%clk
0:01:32]} 22... Qxe7 {[%clk 0:00:14.5]} 23. Qxf5 {[%clk 0:01:32]} 23... Rae8
{[%clk 0:00:14.6]} 24. h4 {[%clk 0:01:30.7]} 24... Qg7 {[%clk 0:00:13.2]} 25.
Bf4 {[%clk 0:01:27.5]} 25... Rg8 {[%clk 0:00:11.7]} 26. g3 {[%clk 0:01:27.7]}
26... Re7 {[%clk 0:00:09.4]} 27. Kf1 {[%clk 0:01:27.1]} 27... Rge8 {[%clk
0:00:08.7]} 28. h5 {[%clk 0:01:25.4]} 28... Qf7 {[%clk 0:00:07.8]} 29. h6 {[%clk
0:01:24.3]} 29... Re6 {[%clk 0:00:04.8]} 30. Kg2 {[%clk 0:01:22.8]} 30... Qd7
{[%clk 0:00:04.8]} 31. Rh1 {[%clk 0:01:20.7]} 31... R8e7 {[%clk 0:00:04]} 32.
Rh4 {[%clk 0:01:20.2]} 32... Qe8 {[%clk 0:00:04.1]} 33. Rg4 {[%clk 0:01:19.1]}
33... Re1 {[%clk 0:00:04.1]} 34. Rg7 {[%clk 0:01:19.1]} 34... Rxg7 {[%clk
0:00:03.3]} 35. hxg7+ {[%clk 0:01:20]} 35... Kxg7 {[%clk 0:00:03.1]} 36. Qxh7+
{[%clk 0:01:20.9]} 36... Kf8 {[%clk 0:00:03.5]} 37. Bh6# {[%clk 0:01:21.7]} 1-0

[Event "Late-Titled-Tuesday-Blitz-May-14-2024"]
[Site "Chess.com"]
[Date "2024.05.14"]
[Round "1"]
[White "Alexander_Donchenko"]
[Black "Slovineanu"]
[Result "1-0"]
[WhiteElo "2857"]
[BlackElo "2477"]
[TimeControl "180+1"]
[EndTime "14:06:04 PDT"]
[Termination "Alexander_Donchenko won by checkmate"]

1. e4 {[%clk 0:03:00.9]} 1... c6 {[%clk 0:02:59.7]} 2. Nf3 {[%clk 0:03:01.1]}
2... d5 {[%clk 0:03:00]} 3. d3 {[%clk 0:03:01.3]} 3... dxe4 {[%clk 0:02:59.7]}
4. dxe4 {[%clk 0:03:02.2]} 4... Qc7 {[%clk 0:02:59.9]} 5. Bd3 {[%clk 0:02:59]}
5... e5 {[%clk 0:02:59.2]} 6. O-O {[%clk 0:02:59.3]} 6... Nf6 {[%clk 0:02:57.2]}
7. a4 {[%clk 0:02:59.2]} 7... Bc5 {[%clk 0:02:51.6]} 8. Bg5 {[%clk 0:02:58.3]}
8... Nbd7 {[%clk 0:02:50.8]} 9. Na3 {[%clk 0:02:58.6]} 9... O-O {[%clk
0:02:45.8]} 10. Nc4 {[%clk 0:02:58.9]} 10... Re8 {[%clk 0:02:46.2]} 11. Qe2
{[%clk 0:02:56.5]} 11... h6 {[%clk 0:02:36.5]} 12. Bd2 {[%clk 0:02:56.4]} 12...
a5 {[%clk 0:02:30.1]} 13. Nh4 {[%clk 0:02:56]} 13... b6 {[%clk 0:02:24.3]} 14.
Nf5 {[%clk 0:02:55.4]} 14... Bf8 {[%clk 0:02:17.9]} 15. Qf3 {[%clk 0:02:53.9]}
15... Ba6 {[%clk 0:02:12.5]} 16. Rad1 {[%clk 0:02:52.5]} 16... Re6 {[%clk
0:02:02.8]} 17. b3 {[%clk 0:02:48.9]} 17... Nc5 {[%clk 0:01:55.6]} 18. Be2
{[%clk 0:02:49.1]} 18... Ncxe4 {[%clk 0:01:50]} 19. Bc1 {[%clk 0:02:47.3]} 19...
Nc5 {[%clk 0:01:31.7]} 20. Qg3 {[%clk 0:02:19.4]} 20... Nfe4 {[%clk 0:01:25.8]}
21. Qh3 {[%clk 0:02:15.1]} 21... Rf6 {[%clk 0:01:19.1]} 22. Bg4 {[%clk
0:02:09.3]} 22... Bxc4 {[%clk 0:01:10.7]} 23. bxc4 {[%clk 0:02:10.2]} 23... Rd8
{[%clk 0:01:10.3]} 24. Rxd8 {[%clk 0:02:09]} 24... Qxd8 {[%clk 0:01:10.2]} 25.
Rd1 {[%clk 0:02:09.8]} 25... Qc7 {[%clk 0:01:06.4]} 26. Qh4 {[%clk 0:02:03.9]}
26... Nxa4 {[%clk 0:00:59]} 27. Bh3 {[%clk 0:01:49.1]} 27... Nac3 {[%clk
0:00:57.6]} 28. Re1 {[%clk 0:01:48.5]} 28... Qd8 {[%clk 0:00:50.8]} 29. Be3
{[%clk 0:01:37.3]} 29... Bc5 {[%clk 0:00:41.4]} 30. Bxc5 {[%clk 0:01:23.5]}
30... bxc5 {[%clk 0:00:35.1]} 31. g3 {[%clk 0:01:21.8]} 31... Ng5 {[%clk
0:00:26.6]} 32. Qg4 {[%clk 0:01:11.9]} 32... Nxh3+ {[%clk 0:00:16.9]} 33. Qxh3
{[%clk 0:01:12.8]} 33... e4 {[%clk 0:00:15.1]} 34. Qg4 {[%clk 0:01:11.1]} 34...
Qd2 {[%clk 0:00:10.2]} 35. Qxg7# {[%clk 0:01:10.9]} 1-0

[Event "Late-Titled-Tuesday-Blitz-May-14-2024"]
[Site "Chess.com"]
[Date "2024.05.14"]
[Round "1"]
[White "nindjaxx8"]
[Black "AsaHoffmann"]
[Result "1-0"]
[WhiteElo "2636"]
[BlackElo "2315"]
[TimeControl "180+1"]
[EndTime "14:06:09 PDT"]
[Termination "nindjaxx8 won by resignation"]

1. d4 {[%clk 0:02:58]} 1... Nf6 {[%clk 0:02:54.4]} 2. c4 {[%clk 0:02:47]} 2...
c5 {[%clk 0:02:53.4]} 3. d5 {[%clk 0:02:46.6]} 3... e5 {[%clk 0:02:49.5]} 4. Nc3
{[%clk 0:02:44.7]} 4... d6 {[%clk 0:02:49.4]} 5. e4 {[%clk 0:02:44.8]} 5... Be7
{[%clk 0:02:49.2]} 6. Nf3 {[%clk 0:02:44.7]} 6... Nbd7 {[%clk 0:02:49]} 7. Bd3
{[%clk 0:02:44.7]} 7... Nf8 {[%clk 0:02:48.9]} 8. Be3 {[%clk 0:02:43.6]} 8...
Ng6 {[%clk 0:02:48.6]} 9. Qc2 {[%clk 0:02:44.1]} 9... O-O {[%clk 0:02:46.8]} 10.
O-O {[%clk 0:02:40]} 10... Nh5 {[%clk 0:02:45.6]} 11. a3 {[%clk 0:02:29.2]}
11... Nhf4 {[%clk 0:02:42.3]} 12. b4 {[%clk 0:02:26.6]} 12... b6 {[%clk
0:02:41.5]} 13. bxc5 {[%clk 0:02:15.6]} 13... bxc5 {[%clk 0:02:39.4]} 14. Rab1
{[%clk 0:02:13.1]} 14... Nxd3 {[%clk 0:02:36.8]} 15. Qxd3 {[%clk 0:02:13]} 15...
f5 {[%clk 0:02:36.7]} 16. exf5 {[%clk 0:01:58.5]} 16... Bxf5 {[%clk 0:02:35.2]}
17. Ne4 {[%clk 0:01:59.2]} 17... h6 {[%clk 0:02:20.2]} 18. Rb7 {[%clk
0:01:48.9]} 18... a5 {[%clk 0:02:08.1]} 19. Rfb1 {[%clk 0:01:46.5]} 19... a4
{[%clk 0:02:07.4]} 20. Nfd2 {[%clk 0:01:43.9]} 20... Bg5 {[%clk 0:02:00.4]} 21.
Bxg5 {[%clk 0:01:41.7]} 21... hxg5 {[%clk 0:01:59.3]} 22. Qe3 {[%clk 0:01:36.1]}
22... Nf4 {[%clk 0:01:57.6]} 23. R1b6 {[%clk 0:01:32.1]} 23... g4 {[%clk
0:01:33.6]} 24. Nxd6 {[%clk 0:01:19]} 24... Bc8 {[%clk 0:01:20.5]} 25. Nxc8
{[%clk 0:01:10.2]} 25... Qxc8 {[%clk 0:01:17]} 26. Qxe5 {[%clk 0:01:10]} 26...
Rf7 {[%clk 0:01:03.5]} 27. Rxf7 {[%clk 0:01:07.1]} 27... Kxf7 {[%clk 0:01:02.9]}
28. Qxf4+ {[%clk 0:01:05.5]} 28... Kg8 {[%clk 0:00:59.6]} 29. g3 {[%clk
0:01:03.1]} 29... Qe8 {[%clk 0:00:53.1]} 30. Ne4 {[%clk 0:01:01.4]} 30... Ra7
{[%clk 0:00:51.8]} 31. Qxg4 {[%clk 0:00:59.1]} 31... Rf7 {[%clk 0:00:49.8]} 32.
Re6 {[%clk 0:00:56.9]} 32... Qb8 {[%clk 0:00:47.1]} 33. Nd6 {[%clk 0:00:57.1]}
33... Qb1+ {[%clk 0:00:42.4]} 34. Kg2 {[%clk 0:00:56.3]} 34... Qd1 {[%clk
0:00:26.5]} 35. Qxd1 {[%clk 0:00:54]} 1-0

[Event "Late-Titled-Tuesday-Blitz-May-14-2024"]
[Site "Chess.com"]
[Date "2024.05.14"]
[Round "1"]
[White "hblanco"]
[Black "grozdanovic_a"]
[Result "1-0"]
[WhiteElo "2608"]
[BlackElo "2275"]
[TimeControl "180+1"]
[EndTime "14:06:12 PDT"]
[Termination "hblanco won by resignation"]

1. e4 {[%clk 0:02:57.1]} 1... c5 {[%clk 0:03:00.3]} 2. c3 {[%clk 0:02:55.7]}
2... d6 {[%clk 0:02:57.1]} 3. d4 {[%clk 0:02:55.2]} 3... cxd4 {[%clk 0:02:57.5]}
4. cxd4 {[%clk 0:02:56.1]} 4... g6 {[%clk 0:02:57.1]} 5. h3 {[%clk 0:02:51.9]}
5... Bg7 {[%clk 0:02:57.2]} 6. Nf3 {[%clk 0:02:52.2]} 6... Nf6 {[%clk
0:02:56.9]} 7. Bd3 {[%clk 0:02:52.3]} 7... Nc6 {[%clk 0:02:55]} 8. Nc3 {[%clk
0:02:51.6]} 8... Bd7 {[%clk 0:02:52.9]} 9. O-O {[%clk 0:02:50.4]} 9... O-O
{[%clk 0:02:51.1]} 10. Be3 {[%clk 0:02:49.4]} 10... Rc8 {[%clk 0:02:44.8]} 11.
Rc1 {[%clk 0:02:48.5]} 11... e6 {[%clk 0:02:43.7]} 12. Qd2 {[%clk 0:02:47]}
12... Re8 {[%clk 0:02:42]} 13. Rfd1 {[%clk 0:02:43.4]} 13... a6 {[%clk
0:02:41.3]} 14. Bf4 {[%clk 0:02:34.5]} 14... e5 {[%clk 0:02:37.8]} 15. Be3
{[%clk 0:02:30.8]} 15... exd4 {[%clk 0:02:18.6]} 16. Nxd4 {[%clk 0:02:31.7]}
16... Qe7 {[%clk 0:02:08.6]} 17. Bb1 {[%clk 0:02:29]} 17... Nh5 {[%clk
0:02:00.1]} 18. Nd5 {[%clk 0:02:24.2]} 18... Qd8 {[%clk 0:01:56]} 19. Bg5 {[%clk
0:02:05.9]} 19... f6 {[%clk 0:01:27.9]} 20. Be3 {[%clk 0:02:05.4]} 20... Nxd4
{[%clk 0:01:20.8]} 21. Bxd4 {[%clk 0:02:05.1]} 21... Rxc1 {[%clk 0:01:20.2]} 22.
Rxc1 {[%clk 0:02:06]} 22... f5 {[%clk 0:01:15.7]} 23. exf5 {[%clk 0:01:57.9]}
23... Bxf5 {[%clk 0:01:06.8]} 24. Bxf5 {[%clk 0:01:56.6]} 24... gxf5 {[%clk
0:01:07.4]} 25. Bxg7 {[%clk 0:01:51.9]} 25... Nxg7 {[%clk 0:01:07.3]} 26. Qh6
{[%clk 0:01:52.2]} 26... Re6 {[%clk 0:01:02]} 27. Qf4 {[%clk 0:01:46]} 27... Re4
{[%clk 0:00:55.7]} 28. Qd2 {[%clk 0:01:41.2]} 28... Ne6 {[%clk 0:00:47.6]} 29.
Rc8 {[%clk 0:01:33.4]} 29... Qxc8 {[%clk 0:00:32.6]} 30. Ne7+ {[%clk 0:01:33.3]}
30... Kf7 {[%clk 0:00:33.2]} 31. Nxc8 {[%clk 0:01:34.2]} 31... Rd4 {[%clk
0:00:32.5]} 32. Nxd6+ {[%clk 0:01:28.2]} 32... Kf6 {[%clk 0:00:30]} 33. Qc3
{[%clk 0:01:28]} 33... Kg6 {[%clk 0:00:24.3]} 34. Nc4 {[%clk 0:01:12.3]} 34...
Rd1+ {[%clk 0:00:20.9]} 35. Kh2 {[%clk 0:01:12]} 35... Nd4 {[%clk 0:00:18.4]}
36. Ne5+ {[%clk 0:01:10.1]} 36... Kf6 {[%clk 0:00:16.2]} 37. Nf3 {[%clk
0:01:10.1]} 1-0